bitfinex-derivatives/quotes_ETHF0:USTF0_20250205
["timestamp","ask_amount","ask_price","bid_price","bid_amount"]
[1738737738121,3.2078,2743.4,2742.8,3.2078]
[1738737738526,4.75177361,2743.9,2743.3,0.66561314]
[1738737738527,3.2078,2743.7,2743.3,0.66561314]
[1738737738730,3.2078,2743.8,2743.5,0.66561314]
[1738737740423,3.2078,2743.8,2743.1,0.1506606]
[1738737740628,3.2078,2743.5,2743.3,0.66561314]
[1738737740827,7.95957361,2743.9,2743.5,0.66561314]
[1738737742930,7.95957361,2743.9,2743.8,0.66561314]
[1738737743233,7.95957361,2743.9,2743.3,0.66561314]
[1738737743625,3.2078,2743.6,2743.3,0.66561314]
[1738737746442,3.2078,2743.6,2743.5,0.66561314]
[1738737746941,7.95957361,2743.9,2743.5,0.66561314]
[1738737747143,7.95957361,2743.9,2743.6,0.66561314]
[1738737749043,7.95957361,2743.9,2743.7,0.66561314]
[1738737749350,4.75177361,2743.9,2743.8,3.87341314]
[1738737749536,2.30940631,2743.9,2743.8,3.87341314]
[1738737749743,0.52780631,2743.9,2743.8,4.02407374]
[1738737749945,13.87974457,2744.1,2743.8,4.02407374]
[1738737750139,13.87974457,2744.1,2744.0,0.66561314]
[1738737751339,3.2078,2744.8,2744.0,0.66561314]
[1738737751541,3.2078,2744.8,2744.5,0.66561314]
[1738737752836,3.2078,2744.8,2744.4,0.00547066]
[1738737753047,3.2078,2744.8,2744.7,0.66561314]
[1738737753548,3.2078,2745.4,2744.7,3.87341314]
[1738737753749,3.2078,2745.4,2745.1,0.66561314]
[1738737754048,3.2078,2745.4,2744.8,0.66561314]
[1738737754249,3.2078,2745.1,2744.5,0.81627374]
[1738737754441,3.2078,2744.8,2744.5,0.81627374]
[1738737754638,3.2078,2744.8,2744.5,0.1506606]
[1738737755652,3.2078,2744.8,2744.4,0.00547066]
[1738737756245,3.2078,2744.8,2744.5,0.66561314]
[1738737756643,3.2078,2744.8,2744.6,0.66561314]
[1738737757551,3.2078,2744.8,2744.7,0.66561314]
[1738737758449,3.2078,2745.4,2744.7,0.66561314]
[1738737758651,3.2078,2745.4,2745.0,0.66561314]
[1738737759550,3.2078,2745.4,2745.3,0.66561314]
[1738737760043,3.2078,2745.8,2745.3,0.66561314]
[1738737760245,3.2078,2745.8,2745.7,0.66561314]
[1738737760440,3.2078,2746.2,2745.7,0.66561314]
[1738737760640,3.2078,2746.2,2745.8,0.66561314]
[1738737760851,3.2078,2746.2,2745.9,0.66561314]
[1738737762550,3.2078,2746.2,2745.7,0.00547066]
[1738737762551,6.21321488,2746.2,2745.7,0.00547066]
[1738737762746,3.2078,2745.8,2745.7,0.00547066]
[1738737764050,3.2078,2745.8,2745.7,0.6710838]
[1738737765453,3.2078,2745.8,2745.7,0.00547066]
[1738737766455,3.2078,2745.8,2745.7,0.6710838]
[1738737767750,3.2078,2745.8,2745.7,0.8217444]
[1738737769652,3.2078,2745.8,2745.7,0.15613126]
[1738737771055,3.2078,2745.8,2745.7,0.00547066]
[1738737772860,3.2078,2745.8,2745.7,0.6710838]
[1738737773461,3.2078,2746.2,2745.7,0.6710838]
[1738737773759,3.2078,2746.2,2746.1,0.66561314]
[1738737774352,3.2078,2746.2,2746.1,0.81627374]
[1738737776056,3.2078,2746.2,2746.1,0.1506606]
[1738737778162,10.95194624,2746.2,2745.7,0.00547066]
[1738737778366,5.95194624,2745.8,2745.7,0.00547066]
[1738737780063,3.2078,2745.8,2745.7,0.00547066]
[1738737780463,3.2078,2745.8,2745.7,0.6710838]
[1738737782361,3.2078,2745.8,2745.7,0.00547066]
[1738737783367,3.2078,2745.8,2745.7,0.6710838]
[1738737784369,3.2078,2745.8,2745.7,0.66667435]
[1738737786463,0.00441997,2746.0,2745.7,0.66667435]
[1738737786671,3.2078,2745.8,2745.7,0.00106121]
[1738737791768,10.95194624,2745.8,2744.4,3.2078]
[1738737791969,3.2078,2744.9,2744.7,0.66561314]
[1738737792171,3.2078,2744.9,2744.4,0.66561314]
[1738737792367,3.2078,2744.5,2744.4,0.66561314]
[1738737793174,3.2078,2744.9,2744.4,0.66561314]
[1738737793473,3.2078,2744.9,2744.7,0.66561314]
[1738737796377,3.2078,2744.9,2744.8,0.66561314]
[1738737796583,3.2078,2744.9,2744.8,0.81627374]
[1738737797469,3.2078,2745.3,2744.8,0.81627374]
[1738737797776,3.2078,2745.6,2745.4,0.66561314]
[1738737797975,3.2078,2745.6,2745.5,0.66561314]
[1738737799880,3.2078,2745.9,2745.5,0.66561314]
[1738737800080,0.00441997,2746.0,2745.7,0.66561314]
[1738737800279,3.2078,2745.8,2745.7,0.66561314]
[1738737801471,3.2078,2745.8,2745.6,0.15613126]
[1738737801673,0.00441997,2746.0,2745.6,0.15613126]
[1738737803588,0.00441997,2746.0,2745.6,3.36393126]
[1738737805480,0.00441997,2746.0,2745.7,0.5765]
[1738737805681,0.00441997,2746.0,2745.8,0.617]
[1738737805876,3.2078,2746.1,2745.8,0.617]
[1738737806078,3.2078,2746.1,2745.9,1.71]
[1738737806887,3.2078,2746.5,2745.9,1.71]
[1738737807085,0.00106122,2746.3,2746.0,3.2078]
[1738737807283,0.00106122,2746.3,2743.2,3.50643567]
[1738737807284,0.58249,2745.6,2743.2,3.50643567]
[1738737807486,3.2078,2744.0,2743.4,3.2078]
[1738737807780,3.2078,2744.0,2743.3,1.1921]
[1738737808182,3.2078,2744.0,2743.3,6.03333687]
[1738737808384,3.2078,2744.3,2743.5,3.2078]
[1738737808584,0.00547066,2743.9,2743.5,3.2078]
[1738737808888,0.00547066,2743.9,2743.6,4.84123687]
[1738737809090,0.00547066,2743.9,2743.5,0.6132]
[1738737809289,0.00547066,2743.9,2743.5,5.40528727]
[1738737810790,3.2078,2744.3,2743.8,2.74414624]
[1738737810980,3.2078,2744.9,2744.0,3.2078]
[1738737811180,3.2078,2745.2,2744.6,3.2078]
[1738737811380,3.2078,2745.5,2744.7,1.859]
[1738737811883,3.2078,2745.2,2744.8,0.00547066]
[1738737812580,0.00106122,2745.4,2744.8,2.7496169]
[1738737812876,0.00106122,2745.4,2745.1,3.2078]
[1738737813281,0.00106122,2745.4,2745.0,3.2078]
[1738737817086,0.00106122,2745.4,2745.1,4.6838677]
[1738737818388,3.2078,2745.9,2745.1,4.6838677]
[1738737819187,3.58834431,2746.8,2745.1,4.6838677]
[1738737819188,18.47551903,2746.6,2745.8,3.2078]
[1738737819389,3.2078,2746.2,2745.9,1.816]
[1738737821795,3.2078,2746.5,2745.9,1.816]
[1738737822294,3.2078,2746.2,2745.9,1.803]
[1738737822486,3.2078,2746.2,2745.6,0.6704]
[1738737822694,3.2078,2746.2,2745.4,2.4517]
[1738737824195,3.2078,2745.9,2745.4,2.4517]
[1738737826895,2.06062086,2745.9,2745.4,2.4517]
[1738737827194,3.2078,2746.3,2745.7,3.2078]
[1738737827787,3.2078,2746.3,2745.8,4.68150962]
[1738737828699,3.2078,2746.3,2745.4,2.4517]
[1738737829394,3.2078,2746.3,2745.7,3.2078]
[1738737829895,3.2078,2746.3,2745.4,2.4517]
[1738737830099,3.2078,2745.8,2745.4,2.4517]
[1738737830289,3.2078,2745.8,2745.4,0.6507]
[1738737830490,3.2078,2745.8,2745.0,2.4364]
[1738737830796,3.2078,2745.8,2745.1,4.66303996]
[1738737832302,3.2078,2745.7,2745.0,0.6704]
[1738737832492,3.2078,2745.7,2745.1,1.757]
[1738737832698,3.2078,2745.4,2744.8,0.00547066]
[1738737832899,3.2078,2745.1,2744.8,0.00547066]
[1738737833396,3.2078,2745.4,2744.8,0.00547066]
[1738737837612,0.6988,2745.6,2744.8,0.00547066]
[1738737838802,0.6988,2745.6,2744.9,4.82112318]
[1738737839000,3.2078,2745.7,2744.9,4.82112318]
[1738737841407,3.2078,2745.7,2745.1,3.2078]
[1738737841605,3.2078,2745.7,2745.2,2.74626639]
[1738737841806,3.2078,2745.7,2745.2,7.51525117]
[1738737842311,3.2078,2745.7,2745.1,3.2078]
[1738737842502,3.2078,2745.7,2744.8,4.12503705]
[1738737842503,3.2078,2745.7,2745.2,1.712]
[1738737842803,3.2078,2745.7,2744.8,4.12503705]
[1738737842804,3.2078,2745.4,2744.8,0.00547066]
[1738737843011,3.2078,2745.1,2744.8,0.00547066]
[1738737843707,5.95406639,2745.1,2744.1,4.9198]
[1738737843908,3.2078,2744.5,2743.8,0.24973141]
[1738737844112,3.2078,2744.5,2743.6,4.45726639]
[1738737844609,3.2078,2744.2,2743.5,0.657]
[1738737844806,3.2078,2744.2,2743.3,3.2078]
[1738737845113,3.2078,2743.6,2743.1,15.298]
[1738737845511,3.2078,2743.6,2743.5,0.00547066]
[1738737845905,3.2078,2743.6,2742.7,1.71]
[1738737846111,3.2078,2743.3,2742.7,1.71]
[1738737847410,3.2078,2743.3,2742.7,1.71547066]
[1738737850005,3.2078,2743.3,2742.8,4.67928849]
[1738737850407,3.2078,2743.3,2742.9,1.687]
[1738737852116,3.2078,2743.3,2742.9,4.8948]
[1738737856415,0.7338,2744.0,2742.9,4.8948]
[1738737856416,3.2078,2743.7,2743.0,4.7164572]
[1738737857519,3.2078,2743.7,2742.9,4.8948]
[1738737857915,3.9416,2744.0,2742.9,4.8948]
[1738737858409,3.2078,2743.7,2742.9,4.8948]
[1738737858615,3.2078,2743.7,2742.9,4.8598]
[1738737863724,3.2078,2743.7,2742.9,5.10630592]
[1738737864422,3.2078,2743.7,2743.0,4.67836541]
[1738737864727,3.2078,2743.7,2743.0,5.40496541]
[1738737865229,3.2078,2743.7,2743.0,5.98799541]
[1738737865624,3.2078,2743.7,2743.0,5.40496541]
[1738737866923,3.2078,2743.4,2743.0,1.621]
[1738737867430,3.2078,2743.4,2742.8,3.2078]
[1738737869536,3.2078,2743.4,2742.7,0.00547066]
[1738737870842,3.2078,2743.4,2742.7,1.61247066]
[1738737873539,3.2078,2743.4,2742.8,3.2078]
[1738737874830,3.2078,2743.4,2742.7,0.00547066]
[1738737875036,3.2078,2743.1,2742.7,0.00547066]
[1738737875437,3.2078,2742.8,2741.8,1.595]
[1738737875637,3.2078,2742.4,2741.8,1.595]
[1738737876939,3.21327066,2742.4,2741.8,0.00547066]
[1738737877437,0.00547066,2742.4,2741.8,0.00547066]
[1738737877641,3.9701,2743.0,2742.2,3.2078]
[1738737877832,3.9701,2743.0,2742.0,2.74626639]
[1738737878032,3.9701,2743.0,2742.2,3.2078]
[1738737878534,3.9701,2743.0,2742.2,0.7804]
[1738737878836,0.00547066,2742.9,2742.5,3.2078]
[1738737879339,0.00547066,2742.9,2742.3,0.7754]
[1738737879643,0.00547066,2742.9,2742.4,7.88224042]
[1738737881038,3.2078,2743.0,2742.4,10.62850681]
[1738737881243,3.2078,2744.0,2742.5,3.2078]
[1738737881444,3.2078,2744.0,2742.8,2.74626639]
[1738737881649,3.2078,2744.0,2742.9,1.574]
[1738737882239,0.00547066,2743.7,2743.2,0.00547066]
[1738737882440,0.00547066,2743.7,2743.3,3.2078]
[1738737882640,0.00547066,2743.7,2743.2,0.00547066]
[1738737883647,3.2078,2743.4,2743.2,0.00547066]
[1738737885141,0.00547066,2743.7,2743.2,0.00547066]
[1738737887544,3.2078,2744.2,2743.5,3.2078]
[1738737887745,3.2078,2744.2,2743.6,1.558]
[1738737889446,3.2078,2744.2,2743.7,4.82572784]
[1738737889645,3.2078,2744.3,2743.7,4.82572784]
[1738737893245,3.2078,2744.3,2743.6,0.25278573]
[1738737893442,3.2078,2743.9,2743.5,1.539]
[1738737894447,3.2078,2744.2,2743.5,1.539]
[1738737896147,3.2078,2744.2,2743.5,4.7468]
[1738737896347,0.782,2744.5,2743.6,7.50981716]
[1738737896348,3.2078,2744.5,2743.6,7.50981716]
[1738737897151,3.2078,2744.5,2743.8,3.2078]
[1738737897645,3.2078,2744.5,2744.0,2.74626639]
[1738737897646,2.53329915,2744.5,2744.0,2.74626639]
[1738737897850,15.26771903,2744.8,2744.4,5.95406639]
[1738737898051,13.40282469,2744.8,2744.5,1.531]
[1738737898855,13.04937768,2744.8,2744.5,1.531]
[1738737899549,3.2078,2745.5,2744.5,1.531]
[1738737899951,3.2078,2745.5,2744.4,5.95406639]
[1738737900150,3.2078,2745.5,2744.7,0.00547066]
[1738737900354,2.74626639,2745.4,2744.7,0.00547066]
[1738737900541,3.2078,2745.0,2744.7,0.00547066]
[1738737900747,0.7404,2744.9,2744.2,1.523]
[1738737900951,3.2078,2744.7,2744.2,1.523]
[1738737902055,3.21327066,2744.7,2744.2,1.52847066]
[1738737902644,3.21327066,2744.7,2744.2,0.33734013]
[1738737905646,3.2078,2744.4,2744.2,0.33734013]
[1738737906154,3.2078,2744.4,2744.2,0.00547066]
[1738737908649,10.95406639,2744.4,2743.1,3.2078]
[1738737908848,3.2078,2743.8,2743.1,3.2078]
[1738737909856,3.2078,2743.8,2743.2,0.00547066]
[1738737911058,3.2078,2743.5,2743.2,0.00547066]
[1738737911957,8.2078,2743.5,2742.3,3.2078]
[1738737912163,3.2078,2742.8,2742.2,1.503]
[1738737913054,3.21327066,2742.8,2742.2,1.50847066]
[1738737913553,3.21327066,2742.8,2742.2,0.00547066]
[1738737914062,0.7491,2742.7,2742.2,0.00547066]
[1738737914251,3.2078,2742.4,2742.2,0.00547066]
[1738737914456,5.95406639,2742.4,2741.4,18.5148]
[1738737914655,3.2078,2742.0,2741.4,18.5148]
[1738737915360,3.2078,2742.0,2741.2,1.497]
[1738737915860,3.2078,2742.6,2741.9,3.2078]
[1738737916454,3.2078,2742.6,2741.7,0.7689]
[1738737916662,3.2078,2742.6,2741.7,0.95008436]
[1738737916961,3.2078,2742.3,2741.4,0.00547066]
[1738737917157,1.5303,2742.2,2741.4,0.00547066]
[1738737918063,3.2078,2742.0,2741.4,0.00547066]
[1738737918961,3.2078,2741.9,2741.4,0.00547066]
[1738737919262,3.2078,2741.6,2741.4,0.00547066]
[1738737921869,3.2078,2741.6,2741.4,0.00133382]
[1738737924969,3.2078,2741.6,2739.5,0.18136659]
[1738737924970,8.79114,2741.6,2740.1,3.2078]
[1738737925163,3.2078,2740.8,2740.1,3.2078]
[1738737926067,0.00547066,2740.7,2740.2,0.00547066]
[1738737926871,0.00547066,2740.7,2740.3,10.77539976]
[1738737927069,0.00547066,2740.7,2740.3,4.82133337]
[1738737927272,0.00547066,2740.7,2740.2,0.00547066]
[1738737927566,0.00547066,2740.7,2740.2,3.21327066]
[1738737928266,0.00547066,2740.7,2740.6,2.74626639]
[1738737928870,4.7137,2742.3,2740.6,2.74626639]
[1738737929064,4.7137,2742.3,2741.9,3.2078]
[1738737929065,1.5059,2742.3,2741.9,3.2078]
[1738737929369,0.7905,2743.2,2741.8,5.95406639]
[1738737929370,3.2078,2742.5,2741.8,5.95406639]
[1738737929667,3.2078,2742.4,2741.8,3.2078]
[1738737929866,3.2078,2742.7,2741.8,3.2078]
[1738737930270,0.00547066,2742.4,2741.8,3.21327066]
[1738737930963,0.00547066,2742.4,2742.1,3.2078]
[1738737932267,0.00547066,2742.4,2741.9,1.4909]
[1738737933371,0.00547066,2742.4,2741.8,2.75173705]
[1738737933372,0.00547066,2742.4,2741.8,1.47847066]
[1738737933969,3.2078,2743.3,2742.3,3.2078]
[1738737934170,3.2078,2743.0,2742.3,3.2078]
[1738737934371,3.2078,2743.0,2742.1,2.74626639]
[1738737935268,0.00547066,2742.8,2742.1,2.74626639]
[1738737935675,0.00547066,2742.8,2742.0,4.6808]
[1738737935974,3.2078,2742.7,2742.0,4.6808]
[1738737936169,0.00547066,2742.8,2742.0,7.42706639]
[1738737936576,3.21327066,2742.8,2742.0,7.42706639]
[1738737937277,3.21327066,2742.8,2742.1,4.69651059]
[1738737937576,3.21327066,2742.8,2742.0,7.42706639]
[1738737937969,3.21327066,2742.8,2742.1,4.83944607]
[1738737938371,0.00547066,2742.8,2742.3,5.95406639]
[1738737938667,0.7716,2743.7,2742.7,5.95406639]
[1738737938974,0.8026,2743.8,2743.1,3.2078]
[1738737939172,3.2078,2744.0,2743.2,2.74626639]
[1738737939380,3.2078,2744.0,2743.2,3.51976639]
[1738737939871,0.00547066,2743.9,2743.3,0.00547066]
[1738737940067,3.2078,2743.7,2743.3,0.00547066]
[1738737941873,0.00547066,2743.9,2743.3,0.00547066]
[1738737942682,0.00547066,2743.9,2743.3,2.75173705]
[1738737942874,0.00547066,2743.9,2743.6,5.95406639]
[1738737943479,0.00547066,2743.9,2743.7,1.465]
[1738737944380,0.00547066,2743.9,2743.6,3.2078]
[1738737944577,0.00547066,2743.9,2743.3,0.00547066]
[1738737945477,0.00547066,2743.9,2743.3,2.75173705]
[1738737946075,0.00547066,2743.9,2743.3,0.00547066]
[1738737946484,0.00547066,2743.9,2743.3,1.46547066]
[1738737947476,0.00547066,2743.9,2743.3,0.00547066]
[1738737951885,3.2078,2743.6,2743.3,0.00547066]
[1738737952081,3.79072,2743.6,2743.3,0.00547066]
[1738737952286,8.2078,2743.6,2743.3,0.00547066]
[1738737952589,8.2078,2743.6,2742.5,1.445]
[1738737952790,3.2078,2743.1,2742.5,1.445]
[1738737953589,3.2078,2743.1,2742.5,1.45047066]
[1738737955189,1.57067066,2743.9,2742.5,1.45047066]
[1738737955190,3.2078,2743.6,2743.0,3.2078]
[1738737955386,3.2078,2743.6,2742.6,3.2078]
[1738737957086,3.2078,2743.0,2742.6,3.2078]
[1738737958387,3.2078,2743.4,2742.6,3.2078]
[1738737958591,3.2078,2743.1,2742.6,3.2078]
[1738737961795,3.2078,2743.1,2742.5,0.00547066]
[1738737961796,3.2078,2742.7,2742.5,0.00547066]
[1738737963593,3.2078,2743.0,2742.5,0.00547066]
[1738737963994,3.2078,2743.4,2742.7,3.2078]
[1738737964192,1.5519,2743.8,2742.9,2.74626639]
[1738737964391,0.00547066,2743.9,2743.5,3.2078]
[1738737964695,0.00547066,2743.9,2743.2,5.95406639]
[1738737964895,0.00547066,2743.9,2743.3,3.2078]
[1738737965098,0.00547066,2743.9,2743.6,3.2078]
[1738737965293,0.00547066,2743.9,2743.3,3.2078]
[1738737965696,0.00547066,2743.9,2743.4,1.434]
[1738737966599,0.00547066,2743.9,2743.5,0.7883]
[1738737967288,0.00547066,2743.9,2743.6,3.2078]
[1738737971198,0.00547066,2743.9,2743.6,5.95406639]
[1738737972198,0.00547066,2743.9,2743.6,3.2078]
[1738737972503,0.00547066,2743.9,2743.3,1.434]
[1738737972504,3.21327066,2743.9,2743.3,1.434]
[1738737972693,3.2078,2743.6,2743.3,1.434]
[1738737972897,3.2078,2743.6,2742.6,0.777]
[1738737973096,3.2078,2743.2,2742.5,3.21327066]
[1738737974405,3.2078,2742.7,2742.5,0.00547066]
[1738737976101,3.2078,2742.6,2741.6,3.2078]
[1738737976410,3.2078,2742.6,2741.0,0.18568577]
[1738737976411,3.2078,2742.3,2741.5,3.2078]
[1738737976598,4.0183,2742.6,2741.6,0.7804]
[1738737976793,3.2078,2742.6,2741.6,0.7804]
[1738737976997,3.2078,2742.9,2742.1,3.2078]
[1738737977201,3.2078,2742.9,2742.2,2.2146]
[1738737977403,3.2078,2742.9,2742.2,2.22007066]
[1738737977601,0.00547066,2742.8,2742.2,2.2159344]
[1738737977904,0.00547066,2742.8,2742.4,3.2078]
[1738737978107,0.00547066,2742.8,2742.5,0.7804]
[1738737980900,0.00547066,2742.8,2742.6,1.434]
[1738737985606,0.00547066,2742.8,2742.7,3.2078]
[1738737985909,0.7661,2743.8,2742.7,5.95406639]
[1738737986102,0.7661,2743.8,2742.8,0.7934]
[1738737986498,0.7661,2743.8,2743.2,3.2078]
[1738737987110,0.77157066,2743.8,2742.9,3.9626]
[1738737987406,0.77157066,2743.8,2742.9,0.7548]
[1738737988301,3.2078,2743.6,2742.6,3.2078]
[1738737988509,3.2078,2742.9,2741.9,4.17926639]
[1738737988701,3.2078,2742.4,2741.8,3.2078]
[1738737991809,4.0124,2742.8,2742.1,3.2078]
[1738737992004,4.0124,2742.8,2742.2,0.78947066]
[1738737992711,3.2078,2743.1,2742.5,3.20366374]
[1738737992912,3.2078,2743.6,2742.8,3.2078]
[1738737993207,0.00547066,2743.8,2743.2,3.2078]
[1738737993414,0.00547066,2743.8,2743.3,0.784]
[1738737993609,0.00547066,2743.8,2743.3,3.53026639]
[1738737994704,0.00547066,2743.8,2743.4,1.433]
[1738737997202,0.00547066,2743.8,2743.2,3.2078]
[1738737997908,3.2078,2743.3,2742.3,1.5376]
[1738737998108,0.7826,2743.2,2742.3,1.5376]
[1738737998305,3.2078,2743.0,2742.3,0.7859]
[1738737999611,3.2078,2742.7,2742.0,3.2078]
[1738738001916,3.2078,2742.4,2742.0,0.78383283]
[1738738002619,3.2078,2742.4,2741.8,0.7859]
[1738738003020,3.21327066,2742.4,2741.8,0.79137066]
[1738738005318,0.00547066,2742.4,2742.1,3.2078]
[1738738005520,3.2078,2742.7,2742.1,3.2078]
[1738738005724,0.7826,2743.2,2742.3,2.74626639]
[1738738005928,3.2078,2742.9,2742.4,0.7979]
[1738738006422,3.2078,2742.9,2742.2,1.433]
[1738738006616,3.21327066,2742.9,2742.2,1.433]
[1738738008525,0.00547066,2742.9,2742.3,2.74626639]
[1738738008823,3.21327066,2742.9,2742.3,2.74626639]
[1738738009522,3.21327066,2742.9,2742.2,1.433]
[1738738011116,3.21327066,2742.9,2742.0,0.7658]
[1738738011318,3.2078,2742.6,2742.0,2.1988]
[1738738012725,0.00547066,2742.9,2742.0,2.1988]
[1738738012726,3.21327066,2742.9,2742.0,2.1988]
[1738738012913,3.2078,2742.6,2742.0,2.1988]
[1738738014319,3.2078,2742.6,2741.8,3.99917066]
[1738738014521,3.2078,2742.3,2741.8,3.99917066]
[1738738015830,3.2078,2742.3,2741.8,3.21327066]
[1738738016331,3.2078,2742.0,2741.8,0.00547066]
[1738738017235,2.74626639,2741.9,2740.9,15.309]
[1738738017525,3.2078,2741.3,2740.7,0.7823]
[1738738018322,3.21327066,2741.3,2740.7,0.78777066]
[1738738019334,3.2078,2740.9,2740.7,0.00547066]
[1738738021940,3.2078,2741.2,2740.7,0.00547066]
[1738738024345,3.2078,2740.8,2740.7,0.00547066]
[1738738025536,3.2078,2740.8,2739.8,3.2078]
[1738738025739,0.7414,2740.9,2739.8,3.2078]
[1738738025740,3.2078,2740.3,2739.8,3.2078]
[1738738025935,3.2078,2740.0,2739.0,0.7572]
[1738738026539,3.2078,2739.7,2739.1,1.433]
[1738738026744,3.2078,2739.7,2739.2,0.00547066]
[1738738027741,0.00547066,2739.8,2739.2,0.00547066]
[1738738030147,0.00547066,2739.8,2739.3,1.433]
[1738738034239,0.00547066,2739.8,2739.5,3.2078]
[1738738034439,0.00547066,2739.8,2739.4,1.5539]
[1738738035949,3.2078,2740.3,2739.6,3.2078]
[1738738036144,3.2078,2740.3,2739.7,0.7712]
[1738738037254,3.2078,2740.0,2739.4,1.5539]
[1738738038657,3.2078,2740.0,2739.2,0.74617066]
[1738738039550,3.2078,2740.0,2739.4,3.2078]
[1738738039747,3.21327066,2740.3,2739.8,3.2078]
[1738738039947,3.2078,2741.4,2740.1,3.2078]
[1738738040149,3.2078,2741.4,2739.9,0.7407]
[1738738040150,3.2078,2741.4,2740.8,3.2078]
[1738738040349,3.2078,2741.4,2740.5,3.2078]
[1738738040551,3.2078,2741.4,2740.6,0.7499]
[1738738040755,3.2078,2741.7,2741.2,3.2078]
[1738738040954,3.2078,2741.7,2741.4,2.74626639]
[1738738041348,3.21327066,2741.7,2741.2,3.21327066]
[1738738041751,3.21327066,2741.7,2741.2,0.00547066]
[1738738042251,0.00547066,2741.7,2741.4,2.74626639]
[1738738042550,3.21327066,2741.7,2741.2,0.00547066]
[1738738043149,3.2078,2741.3,2741.2,0.00547066]
[1738738043659,3.2078,2741.6,2741.2,0.00547066]
[1738738045559,3.2078,2741.3,2741.2,0.00547066]
[1738738049559,5.95406639,2741.3,2741.2,0.00547066]
[1738738049762,5.95406639,2741.3,2741.1,0.00249129]
[1738738049950,3.2078,2741.3,2741.1,0.00249129]
[1738738052753,3.9912,2741.6,2741.1,0.00249129]
[1738738053756,3.2078,2741.6,2741.1,0.00249129]
[1738738055060,3.2078,2741.3,2741.1,0.00249129]
[1738738055261,0.7792,2741.2,2741.1,0.00249129]
[1738738055659,0.7792,2741.2,2740.3,3.01651788]
[1738738055863,3.2078,2740.9,2740.3,0.27025149]
[1738738056062,3.2078,2740.9,2740.2,3.2078]
[1738738056853,3.2078,2740.9,2740.3,0.00547066]
[1738738057455,3.2078,2741.2,2740.3,2.75173705]
[1738738057754,3.2078,2741.5,2740.5,3.2078]
[1738738057952,3.2078,2741.5,2740.6,1.5674]
[1738738058162,3.2078,2741.5,2740.6,2.3436]
[1738738059161,3.2078,2741.5,2740.8,3.2078]
[1738738059465,3.2078,2741.5,2740.9,1.432]
[1738738060356,0.00547066,2741.7,2740.9,1.432]
[1738738061159,0.00547066,2741.7,2741.1,3.2078]
[1738738061558,0.00547066,2741.7,2741.1,5.95406639]
[1738738062466,0.00547066,2741.7,2741.2,0.18297997]
[1738738062662,0.00547066,2741.7,2741.3,1.5746]
[1738738062864,0.00547066,2741.7,2741.3,2.3958]
[1738738063059,0.00547066,2741.7,2741.5,3.2078]
[1738738063762,3.2078,2742.2,2741.5,8.2078]
[1738738064062,3.2078,2742.6,2741.8,3.2078]
[1738738064270,3.2078,2742.6,2741.9,1.431]
[1738738065163,0.00547066,2742.5,2742.0,0.78487066]
[1738738065766,0.00547066,2742.5,2742.0,3.53113705]
[1738738066067,0.00547066,2742.5,2742.0,4.29343705]
[1738738067665,0.00547066,2742.5,2742.0,5.05103705]
[1738738067870,0.00547066,2742.5,2742.1,3.2078]
[1738738073574,3.2078,2742.4,2742.0,0.00547066]
[1738738073776,3.2078,2742.1,2742.0,0.00547066]
[1738738075877,3.2078,2742.1,2742.0,0.00139596]
[1738738076069,8.2078,2742.1,2742.0,0.00139596]
[1738738076267,8.2078,2742.1,2740.9,4.0049]
[1738738076473,3.2078,2741.7,2741.0,0.7667]
[1738738076674,1.5335,2742.4,2740.9,3.2078]
[1738738076675,3.2078,2741.3,2740.9,3.2078]
[1738738077176,3.2078,2741.3,2740.5,0.26688393]
[1738738077177,3.2078,2741.0,2740.3,0.7667]
[1738738077373,3.2078,2740.6,2740.0,13.2078]
[1738738077580,3.2078,2740.6,2740.0,10.0]
[1738738077778,3.2078,2740.6,2740.0,10.00547066]
[1738738077973,3.21327066,2740.6,2740.0,10.00547066]
[1738738080675,3.21327066,2740.6,2740.0,13.21327066]
[1738738080973,0.00547066,2740.6,2740.3,3.2078]
[1738738081181,0.00547066,2740.6,2740.4,3.49576639]
[1738738081377,3.2078,2741.1,2740.5,0.8102]
[1738738082381,3.2078,2741.1,2740.5,2.2402]
[1738738082579,3.21327066,2741.1,2740.5,2.2402]
[1738738082778,3.21327066,2741.1,2740.3,3.2078]
[1738738082972,3.21327066,2741.1,2740.0,12.75173705]
[1738738082973,3.2078,2740.6,2740.0,10.00547066]
[1738738083177,3.2078,2740.3,2740.0,10.00547066]
[1738738085782,3.2078,2740.6,2740.0,10.00547066]
[1738738086378,3.2078,2740.9,2740.1,5.95406639]
[1738738086581,3.2078,2740.9,2740.2,0.7926]
[1738738086779,3.2078,2740.9,2740.2,5.47899374]
[1738738087174,3.2078,2740.9,2740.2,0.7926]
[1738738087879,3.2078,2740.9,2740.1,5.4545]
[1738738088281,3.2078,2740.9,2740.1,0.8167]
[1738738091076,3.2078,2740.7,2740.1,0.8167]
[1738738091785,3.2078,2740.4,2740.0,10.00547066]
[1738738091989,3.2078,2740.1,2740.0,10.00547066]
[1738738093889,3.2078,2740.1,2740.0,2.551687]
[1738738097386,8.2078,2740.1,2739.4,0.7681]
[1738738097586,3.2078,2739.7,2739.4,0.7681]
[1738738099092,3.2078,2739.7,2739.3,0.00547066]
[1738738099687,3.2078,2740.0,2739.5,3.2078]
[1738738099987,3.2078,2740.3,2739.6,1.5768]
[1738738100990,3.2078,2740.7,2739.9,5.95406639]
[1738738101188,3.2078,2740.7,2739.9,7.38306639]
[1738738101788,3.2078,2741.0,2740.5,3.2078]
[1738738102086,3.2078,2741.6,2740.6,1.588]
[1738738102287,3.2078,2741.2,2740.6,1.588]
[1738738105192,3.2078,2741.2,2740.6,0.7666]
[1738738105393,3.2078,2740.9,2740.2,0.26936969]
[1738738105593,2.74626639,2741.2,2740.0,3.0171]
[1738738105594,3.2078,2740.6,2740.0,3.0171]
[1738738106789,3.2078,2740.3,2740.0,2.2489]
[1738738107097,3.2078,2740.3,2740.0,1.429]
[1738738110490,3.2078,2740.6,2740.0,1.429]
[1738738110694,3.2078,2740.6,2740.1,0.7685]